fUSD/lending_fUSD_20240925
["ID","MTS","AMOUNT","RATE_DAILY","PERIOD"]
[339106439,1727251838498,-909.47,0.000127,2]
[339106440,1727251838510,-6157.08148719,0.000127,2]
[339106441,1727251838525,-2752.27195117,0.000127,2]
[339106442,1727251838536,-25080.53015713,0.000127,2]
[339106443,1727251838547,-2457.94104147,0.000127,2]
[339106444,1727251838558,-712.43225591,0.000127,2]
[339106445,1727251838569,-4236.72490095,0.000127,2]
[339106446,1727251838580,-325.65963923,0.000127,2]
[339106447,1727251838591,-1605.98,0.000127,2]
[339106448,1727251838603,-2549.55900004,0.000127,2]
[339106449,1727251838617,-16741.38379213,0.000127,2]
[339106450,1727251838628,-484.43905378,0.000127,2]
[339106500,1727251840084,-3477.73544866,0.000127,2]
[339106501,1727251840098,-2836.8522404,0.000127,2]
[339106502,1727251840136,-4285.7862628,0.000127,2]
[339106503,1727251840193,-462.7030002,0.000127,2]
[339106504,1727251840247,-5719.53545259,0.000127,2]
[339106505,1727251840260,-291.88343201,0.000127,2]
[339106506,1727251840300,-737.23553797,0.000127,2]
[339106507,1727251840314,-5568.99582229,0.000127,2]
[339106508,1727251840327,-374.07477111,0.000127,2]
[339106509,1727251840353,-500.0,0.000127,2]
[339106585,1727251843187,-879.178145,0.000127,2]
[339106586,1727251843239,-2564.133,0.000127,2]
[339106587,1727251843255,-1663375.23129234,0.000127,2]
[339106588,1727251843268,-1451719.90864572,0.000127,2]
[339106589,1727251843293,-508.350001,0.000127,2]
[339106590,1727251843305,-1217.50675063,0.000127,2]
[339106591,1727251843347,-401.47892665,0.000127,2]
[339106593,1727251843455,-1433.76304378,0.000127,2]
[339106600,1727251846078,-300.0,0.00012,2]
[339106601,1727251846091,-3679.28148486,0.000126,2]
[339106602,1727251846184,-977.28888541,0.000126,2]
[339106603,1727251846196,-8168.20280139,0.000127,2]
[339106604,1727251846209,-74925.80071197,0.000127,2]
[339106605,1727251846222,-285.56665977,0.000127,2]
[339106606,1727251846344,-480.34,0.000127,2]
[339106607,1727251846357,-1175.71999984,0.000127,2]
[339106608,1727251846398,-409.22918804,0.000127,2]
[339106609,1727251846718,-1628.51050441,0.000127,2]
[339106610,1727251846731,-433.9560001,0.000127,2]
[339106611,1727251851086,300.0,0.00011,2]
[339106612,1727252014680,150.0,9.815e-05,2]
[339106613,1727252014702,88.59,9.815e-05,2]
[339106615,1727252539558,150.0,0.00010959,2]
[339106616,1727252539579,14.91,0.00010959,2]
[339106617,1727252551462,150.0,9.759e-05,2]
[339106618,1727252551486,88.76,9.759e-05,2]
[339106641,1727253032536,-250.0,0.00011667,2]
[339106642,1727253032548,-260.36775229,0.00011673,2]
[339106647,1727253038741,-20.79224771,0.00011673,2]
[339106648,1727253038751,-1500.0,0.00011673,2]
[339106649,1727253038760,-258.0,0.00011674,2]
[339106650,1727253038769,-460.01,0.00011688,2]
[339106651,1727253038778,-235.22,0.00011721,2]
[339106652,1727253038788,-1000.0,0.00011731,2]
[339106653,1727253038797,-172.87,0.00011753,2]
[339106654,1727253038806,-217.23,0.00011857,2]
[339106655,1727253038815,-300.0,0.00012,2]
[339106656,1727253038825,-300.0,0.00012022,2]
[339106657,1727253038834,-1165.19,0.00012023,2]
[339106658,1727253038844,-247.57,0.00012023,2]
[339106659,1727253038853,-499.99,0.00012023,2]
[339106661,1727253038862,-238.76,0.00012023,2]
[339106663,1727253038871,-12727.23815014,0.000125,2]
[339106665,1727253038881,-500.0,0.00012598,2]
[339106667,1727253038890,-2949.2215,0.00012599,2]
[339106669,1727253038899,-150.0,0.00012599,2]
[339106671,1727253038908,-475.3993,0.000126,2]
[339106672,1727253038917,-18731.2092,0.000126,2]
[339106674,1727253038926,-1170.15,0.000126,2]
[339106676,1727253038935,-363.1959,0.000126,2]
[339106678,1727253038945,-753.72,0.000126,2]
[339106680,1727253038954,-422.95,0.000126,2]
[339106682,1727253038963,-422.95,0.000126,2]
[339106684,1727253038973,-753.72,0.000126,2]
[339106686,1727253038982,-422.95,0.000126,2]
[339106688,1727253038992,-753.72,0.000126,2]
[339106690,1727253039002,-723.3,0.000126,2]
[339106692,1727253039011,-422.95,0.000126,2]
[339106694,1727253039020,-422.95,0.000126,2]
[339106696,1727253039029,-210.53,0.000126,2]
[339106698,1727253039040,-4190.91333318,0.000126,2]
[339106700,1727253039049,-158.56691584,0.000126,2]
[339106702,1727253039058,-323.64886152,0.000126,2]
[339106704,1727253039067,-397.08025183,0.000126,2]
[339106706,1727253039076,-4190.91333318,0.00012622,2]
[339106708,1727253039086,-397.08025183,0.00012629,2]
[339106710,1727253039095,-4190.91333318,0.00012644,2]
[339106712,1727253039105,-397.08025183,0.00012657,2]
[339106713,1727253039114,-4190.91333318,0.00012667,2]
[339106715,1727253039123,-36491.10637427,0.0001268,2]
[339106717,1727253039132,-161.85604822,0.00012686,2]
[339106720,1727253039145,-457.313,0.00012686,2]
[339106722,1727253039156,-4190.91333318,0.00012689,2]
[339106724,1727253039165,-152.7750292,0.0001269,2]
[339106726,1727253039175,-1719.0762645,0.0001269,3]
[339106728,1727253039184,-156.35,0.0001269,2]
[339106730,1727253039193,-500.0,0.00012699,2]
[339106732,1727253039203,-500.0,0.00012699,2]
[339106734,1727253039214,-369.04972131,0.00012699,2]
[339106736,1727253039228,-500.0,0.00012699,2]
[339106738,1727253039237,-194.69355752,0.00012699,2]
[339106740,1727253039245,-2270.83780639,0.00012699,2]
[339106741,1727253039254,-726895.17330576,0.000127,2]
[339106769,1727253040343,-453.75,0.000127,2]
[339106770,1727253040356,-1175.76446203,0.000127,2]
[339106862,1727253046393,-397.08025183,0.00012686,2]
[339106863,1727253046403,-32531.68079653,0.000127,2]
[339106883,1727253087137,226.98,9.683e-05,2]
[339106885,1727253124536,150.0,0.00011,2]
[339106886,1727253124558,150.0,0.00011,2]
[339106887,1727253124583,150.0,0.00011,2]
[339106888,1727253124605,150.0,0.00011,2]
[339106889,1727253124626,150.0,0.00011,2]
[339106890,1727253124647,150.0,0.00011,2]
[339106891,1727253124666,150.0,0.00011,2]
[339106892,1727253191214,150.0,0.00010959,2]
[339106893,1727253191239,33.6,0.00010959,2]
[339106894,1727253299943,150.0,9.589e-05,2]
[339106895,1727253299965,3.28,9.589e-05,2]
[339106900,1727253753022,150.0,0.00010959,2]
[339106901,1727253753044,5.29,0.00010959,2]
[339106902,1727253790845,150.0,9.582e-05,2]
[339106903,1727253790866,99.75,9.582e-05,2]
[339106918,1727254231595,-180.66250863,0.00011369,2]
[339106919,1727254231606,-556.62749137,0.00011452,2]
[339106920,1727254231706,-137.59250863,0.00011452,2]
[339106921,1727254231716,-225.87,0.00011456,2]
[339106922,1727254231725,-258.0,0.00011462,2]
[339106923,1727254231735,-250.0,0.00011462,2]
[339106924,1727254231744,-1000.0,0.00011469,2]
[339106925,1727254231754,-262.99,0.00011478,2]
[339106926,1727254231766,-249.75,0.00011846,2]
[339106927,1727254231775,-179.61,0.0001202,2]
[339106928,1727254231784,-206.37,0.00012031,2]
[339106929,1727254231795,-480.378276,0.00012287,2]
[339106930,1727254231804,-499.99,0.00012287,2]
[339106931,1727254231814,-150.0,0.00012408,2]
[339106932,1727254231828,-300.0,0.00012408,2]
[339106933,1727254231837,-16710.2738,0.00012409,2]
[339106934,1727254231847,-2326.4415,0.00012409,2]
[339106935,1727254231857,-1240.9058,0.00012409,2]
[339106936,1727254231870,-962.1836,0.00012409,2]
[339106937,1727254231879,-5364.9738,0.0001241,2]
[339106938,1727254231888,-3897.676,0.0001241,2]
[339106939,1727254231899,-5324.46500331,0.0001241,2]
[339106940,1727254231908,-160.74645545,0.00012413,2]
[339106941,1727254231917,-171.7976515,0.00012413,2]
[339106942,1727254231927,-246.76995705,0.00012413,2]
[339106943,1727254231936,-150.0,0.00012417,2]
[339106944,1727254231946,-150.0,0.00012423,2]
[339106945,1727254231956,-150.0,0.00012429,2]
[339106946,1727254231965,-150.0,0.00012436,2]
[339106947,1727254231974,-480.378276,0.0001244,2]
[339106948,1727254231984,-150.0,0.00012443,2]
[339106949,1727254231994,-1500.0,0.00012443,2]
[339106950,1727254232004,-158.91,0.00012445,2]
[339106951,1727254232013,-150.0,0.00012445,2]
[339106952,1727254232023,-1118.37350067,0.00012446,2]
[339106953,1727254232032,-1044.02065154,0.00012446,2]
[339106954,1727254232041,-1110.36325678,0.00012446,2]
[339106955,1727254232050,-150.0,0.00012448,2]
[339106956,1727254232059,-150.0,0.0001245,2]
[339106957,1727254232069,-5324.46500322,0.00012453,2]
[339106958,1727254232078,-1500.0,0.00012461,2]
[339106959,1727254232089,-150.0,0.00012465,2]
[339106960,1727254232098,-150.0,0.00012468,2]
[339106961,1727254232109,-150.0,0.00012468,2]
[339106962,1727254232120,-246.76995698,0.00012468,2]
[339106963,1727254232129,-291.23320283,0.00012478,2]
[339106964,1727254232138,-150.0,0.00012478,2]
[339106965,1727254232147,-150.0,0.00012482,2]
[339106966,1727254232157,-15086.84023304,0.00012489,2]
[339106967,1727254232167,-150.0,0.00012491,2]
[339106968,1727254232177,-416.37465882,0.00012491,2]
[339106969,1727254232187,-1500.0,0.00012494,2]
[339106970,1727254232196,-576.18562701,0.00012495,2]
[339106971,1727254232205,-5324.46500322,0.00012497,2]
[339106972,1727254232214,-154.81,0.000125,2]
[339106973,1727254232223,-429.95,0.000125,2]
[339106974,1727254232233,-753.25,0.000125,2]
[339106975,1727254232242,-357.47,0.000125,2]
[339106976,1727254232251,-321.13511981,0.00012509,2]
[339106977,1727254232261,-123317.71006281,0.00012509,2]
[339106978,1727254232271,-204196.23031915,0.0001251,2]
[339106985,1727254237708,-323.64886151,0.00012413,2]
[339106986,1727254237718,-1409.80835187,0.0001251,2]
[339106987,1727254237874,-931650.81506972,0.0001251,2]
[339106988,1727254237884,-150.0,0.00012513,2]
[339106989,1727254237894,-150.0,0.00012513,2]
[339106990,1727254237905,-1500.0,0.00012516,2]
[339106991,1727254237915,-150.0,0.00012517,2]
[339106992,1727254237924,-150.0,0.00012517,2]
[339106993,1727254237933,-150.0,0.00012521,2]
[339106994,1727254237943,-246.76995698,0.00012524,2]
[339106995,1727254237952,-1500.0,0.00012534,2]
[339106996,1727254237962,-150.0,0.00012535,2]
[339106997,1727254237971,-5222.91708488,0.0001254,2]
[339107001,1727254238125,-101.54791834,0.0001254,2]
[339107003,1727254238135,-148.45208166,0.00012555,2]
[339107097,1727254239433,-1.54791834,0.00012555,2]
[339107099,1727254239443,-150.0,0.00012558,2]
[339107101,1727254239452,-1500.0,0.00012561,2]
[339107103,1727254239461,-32.85191574,0.00012564,2]
[339107107,1727254239490,-117.14808426,0.00012564,2]
[339107109,1727254239499,-150.0,0.00012565,2]
[339107111,1727254239508,-150.0,0.00012566,2]
[339107113,1727254239517,-500.0,0.00012573,2]
[339107115,1727254239527,-150.0,0.00012573,2]
[339107116,1727254239536,-150.0,0.00012574,2]
[339107118,1727254239544,-206.85191574,0.00012579,2]
[339107120,1727254239556,-39.91804124,0.00012579,2]
[339107122,1727254239565,-150.0,0.0001258,2]
[339107124,1727254239574,-86.99257388,0.00012583,2]
[339107126,1727254239585,-1819.20996264,0.00012583,2]
[339107128,1727254239596,-1003.50055156,0.00012583,2]
[339107130,1727254239607,-319.985,0.00012583,2]
[339107132,1727254239619,-2094.77691514,0.00012583,2]
[339107134,1727254239628,-150.0,0.00012585,2]
[339107136,1727254239637,-150.0,0.00012585,2]
[339107138,1727254239646,-150.0,0.00012586,2]
[339107140,1727254239655,-150.0,0.00012591,2]
[339107142,1727254239665,-480.378276,0.00012594,2]
[339107144,1727254239674,-500.0,0.00012598,2]
[339107146,1727254239682,-500.0,0.00012599,2]
[339107148,1727254239691,-361.51273407,0.00012599,2]
[339107150,1727254239701,-525.0,0.000126,2]
[339107152,1727254239710,-181.9738,0.000126,2]
[339107154,1727254239719,-989.6709,0.000126,2]
[339107156,1727254239728,-100000.0,0.000126,2]
[339107158,1727254239737,-1500.0,0.00012601,2]
[339107160,1727254239746,-150.0,0.00012603,2]
[339107162,1727254239755,-150.0,0.00012604,2]
[339107163,1727254239765,-417.709,0.00012613,2]
[339107165,1727254239774,-150.0,0.00012614,2]
[339107167,1727254239783,-150.0,0.00012621,2]
[339107169,1727254239792,-150.0,0.00012622,2]
[339107171,1727254239801,-150.0,0.00012624,2]
[339107173,1727254239810,-5324.46500322,0.00012627,2]
[339107175,1727254239819,-246.76995698,0.00012634,2]
[339107178,1727254239832,-150.0,0.00012644,2]
[339107180,1727254239842,-150.0,0.00012645,2]
[339107182,1727254239851,-1500.0,0.00012648,2]
[339107184,1727254239860,-1500.0,0.00012648,2]
[339107185,1727254239872,-150.0,0.00012654,2]
[339107187,1727254239882,-150.0,0.00012659,2]
[339107189,1727254239891,-1500.0,0.00012665,2]
[339107191,1727254239902,-150.0,0.00012666,2]
[339107193,1727254239912,-5324.46500322,0.0001267,2]
[339107195,1727254239921,-150.0,0.00012677,2]
[339107197,1727254239930,-150.0,0.00012682,2]
[339107199,1727254239939,-1500.0,0.00012682,2]
[339107200,1727254239949,-177.48,0.00012684,2]
[339107202,1727254239958,-150.0,0.00012687,2]
[339107204,1727254239967,-150.0,0.00012688,2]
[339107206,1727254239975,-246.76995698,0.00012689,2]
[339107208,1727254239985,-648.416,0.0001269,2]
[339107210,1727254239994,-1420.0,0.0001269,2]
[339107212,1727254240006,-456.497,0.0001269,2]
[339107214,1727254240016,-1277.656,0.0001269,2]
[339107216,1727254240027,-945.105,0.0001269,2]
[339107218,1727254240038,-810.0,0.0001269,2]
[339107220,1727254240047,-150.488,0.0001269,2]
[339107221,1727254240057,-208.18,0.0001269,2]
[339107223,1727254240067,-559.446,0.0001269,2]
[339107226,1727254240077,-559.902,0.0001269,2]
[339107228,1727254240087,-1904.0,0.0001269,2]
[339107230,1727254240097,-1911.0,0.0001269,2]
[339107232,1727254240106,-264.517,0.0001269,2]
[339107233,1727254240116,-807.0,0.0001269,2]
[339107235,1727254240124,-3348.0,0.0001269,2]
[339107237,1727254240134,-150.0,0.0001269,2]
[339107239,1727254240144,-150.0,0.0001269,2]
[339107241,1727254240153,-150.285,0.0001269,2]
[339107243,1727254240162,-150.0,0.00012697,2]
[339107245,1727254240171,-371326.032462,0.000127,2]
[339107247,1727254240184,-41888.38497124,0.000127,2]
[339107250,1727254240195,-33029.75047501,0.000127,2]
[339107252,1727254240211,-548.10622179,0.000127,2]
[339107255,1727254240222,-699.78547114,0.000127,2]
[339107257,1727254240234,-376.955934,0.000127,2]
[339107259,1727254240246,-38845.77453441,0.000127,2]
[339107261,1727254240259,-1661.41852063,0.000127,2]
[339107263,1727254240270,-500.0,0.000127,2]
[339107265,1727254240281,-7971.90000001,0.000127,2]
[339107268,1727254240293,-7701.58319048,0.000127,2]
[339107270,1727254240304,-6139.93073305,0.000127,2]
[339107272,1727254240315,-1180.22303273,0.000127,2]
[339107274,1727254240326,-607.64675005,0.000127,2]
[339107276,1727254240337,-2405.70459416,0.000127,2]
[339107278,1727254240347,-1000.0,0.000127,2]
[339107279,1727254240356,-1000.0,0.000127,2]
[339107281,1727254240366,-1000.0,0.000127,2]
[339107283,1727254240375,-1000.0,0.000127,2]
[339107285,1727254240384,-1000.0,0.000127,2]
[339107287,1727254240394,-1000.0,0.000127,2]
[339107289,1727254240403,-1000.0,0.000127,2]
[339107291,1727254240412,-194.189881,0.000127,2]
[339107293,1727254240424,-387.37298716,0.000127,2]
[339107295,1727254240434,-1822.0,0.000127,2]
[339107297,1727254240443,-394.45673889,0.000127,2]
[339107299,1727254240452,-2000.0,0.000127,2]
[339107301,1727254240461,-200.0,0.000127,2]
[339107303,1727254240471,-1298.33407715,0.000127,2]
[339107306,1727254240483,-701.66592285,0.000127,2]
[339107308,1727254240493,-200.0,0.000127,2]
[339107310,1727254240502,-489.2,0.000127,2]
[339107312,1727254240511,-2000.0,0.000127,2]
[339107313,1727254240521,-200.0,0.000127,2]
[339107315,1727254240530,-974.12835403,0.000127,2]
[339107317,1727254240541,-25.87164597,0.000127,2]
[339107319,1727254240550,-393.90074374,0.000127,2]
[339107321,1727254240561,-1656.58520388,0.000127,2]
[339107323,1727254240573,-669.62415238,0.000127,2]
[339107325,1727254240582,-227.0,0.000127,2]
[339107327,1727254240592,-2158.6114,0.000127,2]
[339107329,1727254240601,-958.4,0.000127,2]
[339107331,1727254240610,-515.0261,0.000127,2]
[339107333,1727254240621,-200.0,0.000127,2]
[339107335,1727254240630,-600.0,0.000127,2]
[339107337,1727254240639,-359.0,0.000127,2]
[339107339,1727254240649,-3417.2154,0.000127,2]
[339107341,1727254240658,-281.5540137,0.00012701,2]
[339107343,1727254240667,-295.17788791,0.00012701,2]
[339107345,1727254240679,-169.75925871,0.00012701,2]
[339107346,1727254240688,-1204.6736579,0.00012701,2]
[339107347,1727254240697,-668.37733276,0.00012701,2]
[339107348,1727254240709,-1124.02077438,0.00012701,2]
[339107349,1727254240720,-1216.15843688,0.00012701,2]
[339107350,1727254240733,-75.14539978,0.00012701,2]
[339107351,1727254240743,-1445.39963198,0.00012712,2]
[339107352,1727254240755,-4424.51532221,0.00012712,2]
[339107353,1727254240767,-1594.44684523,0.00012712,2]
[339107354,1727254240778,-644.08472678,0.00012712,2]
[339107549,1727254242598,-151.857,0.0001269,2]
[339107551,1727254242608,-788.239497,0.00012712,2]
[339107553,1727254242621,-3664.0000002,0.00012712,2]
[339107555,1727254242642,-413.15000025,0.00012712,2]
[339107557,1727254242653,-255.88,0.00012712,2]
[339107559,1727254242664,-1570.55517767,0.00012712,2]
[339107562,1727254242675,-1389.0,0.00012712,2]
[339107564,1727254242686,-1599.08934919,0.00012712,2]
[339107566,1727254242697,-873.04153788,0.00012712,2]
[339107568,1727254242708,-985.07438389,0.00012712,2]
[339107571,1727254242719,-455.37695136,0.00012712,2]
[339107573,1727254242731,-8170.57666909,0.00012712,2]
[339107575,1727254242742,-831.48450349,0.00012712,2]
[339107577,1727254242753,-3169.21683686,0.00012712,2]
[339107579,1727254242764,-463.29586362,0.00012712,2]
[339107581,1727254242775,-131754.5727033,0.00012712,2]
[339107599,1727254242946,-5324.46500322,0.00012713,2]
[339107601,1727254242959,-250.0,0.0001273,2]
[339107603,1727254242968,-150.0,0.0001273,2]
[339107605,1727254242979,-170.736,0.0001273,2]
[339107608,1727254242989,-151.438,0.0001273,2]
[339107610,1727254242999,-246.76995698,0.00012745,2]
[339107611,1727254243008,-480.378276,0.00012747,2]
[339107614,1727254243018,-5324.46500322,0.00012757,2]
[339107615,1727254243027,-500.0,0.0001277,2]
[339107618,1727254243036,-171.5186495,0.00012776,2]
[339107624,1727254243046,-188708.20271004,0.0001278,2]
[339107627,1727254243055,-200.0,0.00012788,2]
[339107629,1727254243064,-171.51864948,0.00012788,2]
[339107633,1727254243074,-597.45639439,0.00012797,2]
[339107635,1727254243084,-95581.86367145,0.00012799,2]
[339107637,1727254243093,-18711.64819296,0.000128,5]
[339107639,1727254243102,-303.1,0.000128,2]
[339107641,1727254243111,-1003.54,0.000128,2]
[339107643,1727254243127,-5324.46500322,0.000128,2]
[339107645,1727254243136,-170.69544929,0.000128,2]
[339107647,1727254243145,-170.69544929,0.000128,2]
[339107648,1727254243155,-171.19,0.000128,2]
[339107650,1727254243165,-215.67364624,0.000128,2]
[339107652,1727254243174,-215.67364624,0.000128,2]
[339107654,1727254243184,-215.67364624,0.000128,2]
[339107656,1727254243194,-215.67364624,0.000128,2]
[339107658,1727254243203,-215.67364624,0.000128,2]
[339107660,1727254243213,-215.67364624,0.000128,2]
[339107663,1727254243224,-215.67364624,0.000128,2]
[339107664,1727254243233,-215.67364624,0.000128,2]
[339107666,1727254243242,-215.67364624,0.000128,2]
[339107669,1727254243252,-215.67364624,0.000128,2]
[339107671,1727254243261,-215.67364624,0.000128,2]
[339107672,1727254243270,-215.67364624,0.000128,2]
[339107674,1727254243279,-215.67364624,0.000128,2]
[339107676,1727254243289,-215.67364624,0.000128,2]
[339107678,1727254243298,-215.67364624,0.000128,2]
[339107680,1727254243308,-215.67364624,0.000128,2]
[339107682,1727254243317,-215.67364624,0.000128,2]
[339107684,1727254243327,-215.67364624,0.000128,2]
[339107686,1727254243337,-215.67364624,0.000128,2]
[339107688,1727254243347,-216.17,0.000128,2]
[339107690,1727254243357,-767.15841022,0.000128,2]
[339107692,1727254243368,-246.76995698,0.000128,2]
[339107694,1727254243379,-271.85764467,0.000128,2]
[339107696,1727254243388,-271.85764467,0.000128,2]
[339107698,1727254243398,-271.85764467,0.000128,2]
[339107700,1727254243408,-271.85764467,0.000128,2]
[339107702,1727254243417,-271.85764467,0.000128,2]
[339107704,1727254243427,-271.85764467,0.000128,2]
[339107706,1727254243436,-271.85764467,0.000128,2]
[339107708,1727254243447,-271.85764467,0.000128,2]
[339107710,1727254243456,-271.85764467,0.000128,2]
[339107712,1727254243466,-271.85764467,0.000128,2]
[339107714,1727254243475,-271.85764467,0.000128,2]
[339107716,1727254243485,-271.85764467,0.000128,2]
[339107718,1727254243495,-271.85764467,0.000128,2]
[339107720,1727254243505,-271.85764467,0.000128,2]
[339107722,1727254243514,-271.85764467,0.000128,2]
[339107724,1727254243523,-271.85764467,0.000128,2]
[339107726,1727254243533,-271.85764467,0.000128,2]
[339107728,1727254243542,-271.85764467,0.000128,2]
[339107730,1727254243552,-271.85764467,0.000128,2]
[339107731,1727254243561,-272.35,0.000128,2]
[339107733,1727254243571,-439.6196,0.000128,2]
[339107735,1727254243581,-1000.0,0.000128,2]
[339107737,1727254243590,-171.51864948,0.000128,2]
[339107740,1727254243600,-150.705,0.00012802,2]
[339107742,1727254243610,-171.234417,0.00012802,2]
[339107743,1727254243622,-152.0,0.00012803,3]
[339107745,1727254243632,-500.0,0.00012812,2]
[339107747,1727254243641,-500.0,0.00012821,2]
[339107749,1727254243651,-200.0,0.00012827,2]
[339107751,1727254243661,-2000.0,0.00012827,2]
[339107753,1727254243670,-200.0,0.00012827,2]
[339107755,1727254243679,-2000.0,0.00012827,2]
[339107757,1727254243688,-200.0,0.00012827,2]
[339107759,1727254243698,-200.0,0.00012827,2]
[339107761,1727254243707,-500.0,0.0001283,2]
[339107763,1727254243716,-500.0,0.00012838,2]
[339107765,1727254243725,-500.0,0.00012847,2]
[339107767,1727254243734,-500.0,0.00012847,2]
[339107769,1727254243744,-152.0,0.00012852,4]
[339107770,1727254243753,-500.0,0.00012856,2]
[339107772,1727254243763,-500.0,0.00012856,2]
[339107774,1727254243772,-500.0,0.00012865,2]
[339107776,1727254243781,-500.0,0.00012865,2]
[339107778,1727254243790,-7007.20342685,0.0001287,2]
[339107780,1727254243802,-274.97399,0.0001287,2]
[339107782,1727254243814,-286.93626806,0.0001287,2]
[339107784,1727254243826,-4315.42027076,0.0001287,2]
[339107786,1727254243836,-400.0,0.0001287,2]
[339107788,1727254243845,-700.0,0.0001287,2]
[339107790,1727254243854,-903.01770913,0.0001287,2]
[339107792,1727254243863,-400.0,0.0001287,2]
[339107794,1727254243874,-693.54858939,0.0001287,2]
[339107796,1727254243886,-326.59832562,0.0001287,2]
[339107799,1727254243901,-748.63230573,0.0001287,2]
[339107801,1727254243912,-1252.3653747,0.0001287,2]
[339107803,1727254243923,-636.93241277,0.0001287,2]
[339107805,1727254243932,-65.5571405,0.00012873,2]
[339107808,1727254243947,-434.4428595,0.00012873,2]
[339107810,1727254243957,-500.0,0.00012873,2]
[339107812,1727254243966,-500.0,0.00012873,2]
[339107814,1727254243975,-500.0,0.00012873,2]
[339107816,1727254243984,-500.0,0.00012873,2]
[339107818,1727254243994,-311.71844014,0.00012873,2]
[339107820,1727254244004,-500.51766242,0.00012873,2]
[339107822,1727254244013,-500.0,0.00012873,2]
[339107824,1727254244024,-500.0,0.00012874,2]
[339107826,1727254244033,-500.0,0.00012874,2]
[339107828,1727254244043,-500.0,0.00012874,2]
[339107829,1727254244052,-500.0,0.00012874,2]
[339107830,1727254244062,-499.83077392,0.00012876,2]
[339107841,1727254245538,-276.345,0.00012876,2]
[339107842,1727254245550,-189.67621008,0.00012876,2]
[339107843,1727254245559,-110.32378992,0.00012876,2]
[339107844,1727254245570,-3151.08700003,0.00012876,2]
[339107845,1727254245593,-497.85235405,0.00012876,2]
[339107846,1727254245603,-522.44569045,0.00012876,2]
[339107847,1727254245614,-999.41229155,0.00012876,2]
[339107848,1727254245624,-500.0,0.00012876,2]
[339107849,1727254245633,-500.0,0.00012876,2]
[339107850,1727254245642,-345.59486291,0.00012876,2]
[339107851,1727254245651,-503.38037074,0.00012876,2]
[339107852,1727254245660,-342.37473694,0.00012876,2]
[339107853,1727254245669,-500.0,0.00012876,2]
[339107854,1727254245678,-500.0,0.00012876,2]
[339107855,1727254245687,-500.0,0.00012876,2]
[339107856,1727254245697,-500.0,0.00012876,2]
[339107857,1727254245706,-500.0,0.00012876,2]
[339107858,1727254245715,-500.0,0.00012876,2]
[339107859,1727254245724,-500.0,0.00012876,2]
[339107860,1727254245733,-500.0,0.00012876,2]
[339107861,1727254245742,-200.36125391,0.00012876,2]
[339107862,1727254245752,-500.0,0.00012876,2]
[339107863,1727254245761,-500.0,0.00012876,2]
[339107864,1727254245770,-506.07621794,0.00012876,2]
[339107865,1727254245779,-500.0,0.00012876,2]
[339107866,1727254245789,-308.4,0.00012876,2]
[339107867,1727254245798,-500.0,0.00012876,2]
[339107868,1727254245807,-500.0,0.00012876,2]
[339107869,1727254245816,-500.0,0.00012876,2]
[339107870,1727254245827,-500.0,0.00012876,2]
[339107871,1727254245836,-500.0,0.00012876,2]
[339107872,1727254245846,-460.52797285,0.00012876,2]
[339107873,1727254245861,-39.47202715,0.00012876,2]
[339107874,1727254245873,-500.0,0.00012876,2]
[339107875,1727254245882,-500.0,0.00012876,2]